bitfinex-derivatives/quotes_SOLF0:USTF0_20250821
["timestamp","ask_amount","ask_price","bid_price","bid_amount"]
[1755735904756,2.97,187.41,187.37,0.03751451]
[1755735904757,2.53326585,187.41,187.37,0.03751451]
[1755735904960,2.97,187.38,187.37,0.03751451]
[1755735905269,8.3058,187.38,187.37,0.03751451]
[1755735908970,2.97,187.34,187.3,5.41326585]
[1755735909170,2.97,187.33,187.3,5.41326585]
[1755735909873,2.97,187.33,187.25,2.53326585]
[1755735909874,2.97,187.31,187.28,2.53326585]
[1755735910070,2.97,187.31,187.28,5.41326585]
[1755735910267,2.97,187.31,187.28,2.88]
[1755735910572,2.97,187.31,187.27,5.41326585]
[1755735911370,5.3381,187.3,187.27,5.41326585]
[1755735913572,5.3381,187.3,187.28,2.88]
[1755735914173,5.3381,187.3,187.28,2.88]
[1755735914376,8.3079,187.31,187.28,2.88]
[1755735916075,5.3379,187.31,187.27,2.53326585]
[1755735916280,5.50326585,187.31,187.25,5.3395]
[1755735916578,5.50326585,187.31,187.25,2.53326585]
[1755735916579,2.53326585,187.29,187.25,2.53326585]
[1755735916780,2.97,187.28,187.22,5.41326585]
[1755735916977,2.97,187.26,187.22,2.88]
[1755735917175,2.97,187.26,187.2,2.53326585]
[1755735917370,2.53326585,187.25,187.2,2.53326585]
[1755735917575,2.97,187.23,187.2,2.53326585]
[1755735917776,2.97,187.23,187.19,2.88]
[1755735918478,3.01061813,187.23,187.19,2.88]
[1755735918881,3.01061813,187.23,187.19,5.341]
[1755735919078,3.01061813,187.23,187.19,8.221]
[1755735919279,3.01061813,187.23,187.2,2.88]
[1755735919475,3.01061813,187.23,187.2,5.41326585]
[1755735920583,3.01061813,187.23,187.2,10.75426585]
[1755735920881,0.04061813,187.23,187.22,5.41326585]
[1755735921582,0.04061813,187.23,187.22,10.75366585]
[1755735924679,5.50326585,187.34,187.26,2.88]
[1755735924879,2.97,187.33,187.29,2.53326585]
[1755735925075,2.97,187.33,187.29,5.41326585]
[1755735925780,2.97,187.32,187.29,5.41326585]
[1755735925981,3.03,187.32,187.29,2.5739616]
[1755735926381,3.03,187.33,187.29,2.5739616]
[1755735926587,3.03,187.31,187.29,2.5739616]
[1755735927183,2.53326585,187.34,187.29,2.5739616]
[1755735927481,8.3675,187.33,187.29,7.9121616]
[1755735927687,3.03,187.32,187.29,5.4239616]
[1755735928384,3.03,187.34,187.31,2.53326585]
[1755735928689,3.03,187.34,187.31,7.87106585]
[1755735929192,3.03,187.34,187.32,5.3375]
[1755735930079,263.90841258,187.38,187.3,2.85]
[1755735930080,3.03,187.37,187.33,5.38326585]
[1755735930685,3.03,187.36,187.33,5.42204192]
[1755735931488,134.74167843,187.38,187.35,5.38326585]
[1755735931489,135.23841258,187.38,187.35,5.38326585]
[1755735931688,132.20841258,187.38,187.35,5.38326585]
[1755735932189,132.20841258,187.38,187.36,5.3362]
[1755735932392,132.20841258,187.38,187.36,8.1862]
[1755735932588,137.0152,187.41,187.37,2.53326585]
[1755735932787,134.71,187.41,187.37,10.71926585]
[1755735932993,3.03,187.4,187.37,10.71926585]
[1755735933194,131.68,187.41,187.37,10.71926585]
[1755735933195,3.03,187.41,187.37,5.41787184]
[1755735934492,3.03,187.41,187.38,5.3358]
[1755735935390,3.03,187.39,187.37,0.03460599]
[1755735935594,5.56326585,187.38,187.37,0.03460599]
[1755735936188,137.22326585,187.38,187.37,0.03460599]
[1755735936595,142.55906585,187.38,187.37,0.03460599]
[1755735937497,3.03,187.31,187.28,2.53326585]
[1755735937692,3.03,187.31,187.28,5.38326585]
[1755735938198,8.368,187.31,187.28,5.38326585]
[1755735938698,3.06608076,187.31,187.28,2.53326585]
[1755735939089,8.40398076,187.31,187.28,2.53326585]
[1755735940899,8.40398076,187.31,187.26,5.3392]
[1755735940900,8.40398076,187.31,187.27,2.85]
[1755735941097,8.40398076,187.31,187.27,5.38326585]
[1755735941288,5.37398076,187.31,187.27,5.38326585]
[1755735941494,8.3681,187.3,187.27,5.38326585]
[1755735941893,3.03,187.3,187.27,5.38326585]
[1755735942998,8.3681,187.3,187.27,5.38326585]
[1755735944899,3.03,187.3,187.27,5.38326585]
[1755735945300,3.03,187.3,187.27,2.85]
[1755735945498,3.03,187.3,187.27,5.38326585]
[1755735946797,8.3682,187.3,187.27,5.38326585]
[1755735951505,0.03608076,187.31,187.28,2.85]
[1755735952407,8.40398076,187.31,187.28,2.85]
[1755735952604,3.03,187.3,187.27,2.53326585]
[1755735952798,3.03,187.29,187.27,2.53326585]
[1755735953004,0.03608076,187.31,187.27,10.72206585]
[1755735953209,3.06608076,187.31,187.27,10.72206585]
[1755735953409,3.03,187.3,187.27,10.72206585]
[1755735953801,0.03608076,187.31,187.28,5.3385]
[1755735954009,0.03608076,187.31,187.29,2.85]
[1755735954711,0.03608076,187.31,187.29,8.1884]
[1755735954907,0.03608076,187.31,187.29,2.85]
[1755735955708,0.03608076,187.31,187.29,8.1883]
[1755735956309,0.03608076,187.31,187.29,2.85]
[1755735956612,2.99,187.29,187.26,5.52326585]
[1755735958513,2.99,187.29,187.26,10.86246585]
[1755735959814,5.37398076,187.31,187.27,8.3289]
[1755735960009,8.36398076,187.31,187.27,5.3389]
[1755735960217,0.03608076,187.31,187.28,2.53326585]
[1755735960417,0.03608076,187.31,187.29,2.99]
[1755735960712,2.99,187.31,187.28,2.53326585]
[1755735961117,8.3279,187.31,187.28,2.53326585]
[1755735962120,5.3381,187.3,187.28,2.53326585]
[1755735962319,5.3381,187.3,187.27,8.3288]
[1755735963220,8.3281,187.3,187.27,8.3288]
[1755735963724,2.99,187.3,187.28,5.3386]
[1755735964812,5.56325899,187.32,187.29,8.3283]
[1755735965008,0.03999314,187.32,187.3,2.99]
[1755735965220,3.02999314,187.32,187.28,2.53326585]
[1755735965422,8.36759314,187.32,187.29,2.99]
[1755735965922,2.99,187.31,187.29,2.99]
[1755735967423,2.99,187.31,187.29,8.3284]
[1755735969319,2.99,187.31,187.29,5.3384]
[1755735969515,2.99,187.3,187.28,7.87186585]
[1755735970125,2.99,187.3,187.27,5.3389]
[1755735970529,8.3282,187.3,187.27,5.3389]
[1755735970722,8.3282,187.3,187.27,8.3289]
[1755735972328,8.3282,187.3,187.27,2.99]
[1755735977638,2.99,187.29,187.27,2.99]
[1755735978438,8.3284,187.29,187.27,2.99]
[1755735979836,5.3382,187.3,187.27,8.3289]
[1755735980036,5.3382,187.3,187.28,2.99]
[1755735980536,8.3282,187.3,187.28,2.99]
[1755735980731,5.3384,187.29,187.28,2.99]
[1755735980931,5.3384,187.29,187.26,7.87226585]
[1755735981339,5.3384,187.29,187.27,2.99]
[1755735982640,8.3284,187.29,187.27,2.99]
[1755735982841,2.53326585,187.29,187.24,2.53326585]
[1755735983138,2.53326585,187.29,187.22,5.52326585]
[1755735983139,2.99,187.28,187.22,5.52326585]
[1755735983338,2.53326585,187.27,187.22,5.52326585]
[1755735983537,8.3297,187.25,187.22,10.86356585]
[1755735984334,8.3298,187.24,187.22,2.53326585]
[1755735984634,8.3298,187.24,187.21,8.3306]
[1755735984943,2.99,187.24,187.21,8.3306]
[1755735985143,2.99,187.24,187.22,8.3303]
[1755735985440,5.3395,187.26,187.22,8.3303]
[1755735985638,8.3295,187.26,187.24,2.99]
[1755735985938,0.03740288,187.27,187.24,2.53326585]
[1755735986145,0.03740288,187.27,187.26,5.34326585]
[1755735986635,0.03740288,187.27,187.26,2.81]
[1755735987340,140.76399413,187.33,187.25,5.0665317]
[1755735987341,138.23072828,187.33,187.25,5.0665317]
[1755735987546,138.23072828,187.33,187.31,5.34326585]
[1755735988044,138.23072828,187.33,187.32,5.3375]
[1755735988645,2.88,187.36,187.33,5.3371]
[1755735989542,2.88,187.36,187.33,10.68036585]
[1755735989747,2.88,187.39,187.35,5.34326585]
[1755735989942,2.88,187.39,187.36,2.81]
[1755735990143,2.88,187.4,187.37,2.53326585]
[1755735990542,2.88,187.4,187.37,2.81]
[1755735990844,2.88,187.39,187.37,2.53326585]
[1755735992337,5.3353,187.4,187.36,5.37474096]
[1755735992543,2.88,187.37,187.36,0.03864096]
[1755735992946,3.42,187.37,187.36,0.03864096]
[1755735993149,5.41326585,187.33,187.29,5.3382]
[1755735993344,2.88,187.32,187.27,2.81]
[1755735993546,2.53326585,187.31,187.27,2.81]
[1755735993744,2.88,187.3,187.27,2.81]
[1755735994340,2.88,187.29,187.25,5.34326585]
[1755735994548,2.88,187.28,187.25,5.34326585]
[1755735994742,0.03855958,187.3,187.26,2.81]
[1755735994948,0.03855958,187.3,187.26,8.1491]
[1755735995444,8.25675958,187.3,187.26,8.1491]
[1755735995838,2.91855958,187.3,187.27,5.3389]
[1755735996044,0.03855958,187.3,187.25,2.53326585]
[1755735996243,0.03855958,187.3,187.28,2.81]
[1755735996850,0.03855958,187.3,187.28,8.1484]
[1755735997049,0.03855958,187.3,187.28,5.3384]
[1755735997249,2.88,187.29,187.25,5.34326585]
[1755735997550,2.88,187.29,187.27,5.3389]
[1755735997745,0.03855958,187.3,187.27,8.1489]
[1755735998146,0.03855958,187.3,187.27,10.68216585]
[1755735999449,0.03855958,187.3,187.28,5.3386]
[1755736001952,0.03855958,187.3,187.29,5.3384]
[1755736002542,2.88,187.29,187.25,2.81]
[1755736002741,2.88,187.29,187.21,2.81]
[1755736002951,2.88,187.29,187.25,5.34326585]
[1755736003254,2.88,187.29,187.25,10.68266585]
[1755736003754,2.88,187.29,187.26,5.3392]
[1755736003952,2.88,187.29,187.25,5.34326585]
[1755736004154,2.88,187.28,187.25,2.53326585]
[1755736004545,2.53326585,187.29,187.23,2.53326585]
[1755736004758,2.88,187.25,187.21,9.83013001]
[1755736005046,2.88,187.24,187.21,5.34326585]
[1755736005647,2.88,187.24,187.21,5.3406]
[1755736006055,2.88,187.24,187.21,8.1506]
[1755736013050,2.88,187.24,187.2,2.53326585]
[1755736013051,2.56938985,187.25,187.22,8.1503]
[1755736013460,0.036124,187.25,187.22,8.1503]
[1755736013661,0.036124,187.25,187.24,2.81]
[1755736014256,0.036124,187.25,187.24,8.1498]
[1755736014456,0.036124,187.25,187.24,2.81]
[1755736014657,0.036124,187.25,187.22,2.53326585]
[1755736014857,0.036124,187.25,187.22,5.34326585]
[1755736015656,0.036124,187.25,187.23,5.3401]
[1755736017260,2.856124,187.25,187.22,8.1503]
[1755736020160,0.036124,187.25,187.23,5.3401]
[1755736020365,0.036124,187.25,187.24,2.79]
[1755736021664,0.036124,187.25,187.24,8.1298]
[1755736022869,2.82,187.24,187.23,2.53326585]
[1755736023169,2.82,187.24,187.22,2.53326585]
[1755736023469,5.375724,187.25,187.22,5.32326585]
[1755736023767,0.036124,187.25,187.22,2.53326585]
[1755736023973,8.1601,187.23,187.2,7.87416585]
[1755736025566,2.82,187.23,187.2,7.87416585]
[1755736025765,2.82,187.23,187.21,5.3406]
[1755736026269,7.90898985,187.25,187.21,8.1306]
[1755736026468,10.72898985,187.25,187.21,8.1306]
[1755736026768,10.72898985,187.25,187.22,5.3404]
[1755736028270,2.82,187.24,187.22,5.3404]
[1755736030275,2.82,187.23,187.21,8.1306]
[1755736030876,5.3398,187.24,187.21,8.1306]
[1755736031079,8.1598,187.24,187.21,8.1306]
[1755736033166,2.82,187.24,187.21,8.1306]
[1755736034077,0.036124,187.25,187.22,2.53326585]
[1755736034275,0.036124,187.25,187.24,2.79]
[1755736035072,0.036124,187.25,187.18,4.48686416]
[1755736035277,0.036124,187.25,187.23,2.79]
[1755736036580,0.036124,187.25,187.23,8.1299]
[1755736041177,2.856124,187.25,187.23,8.1299]
[1755736043686,0.036124,187.25,187.23,8.1299]
[1755736043992,2.82,187.24,187.23,5.3399]
[1755736044189,2.82,187.24,187.22,7.87356585]
[1755736044492,2.82,187.24,187.22,10.66356585]
[1755736046094,3.02,187.22,187.2,2.53326585]
[1755736046392,3.02,187.22,187.2,5.50326585]
[1755736047696,8.3601,187.23,187.2,10.84416585]
[1755736048294,0.036124,187.25,187.21,2.97]
[1755736048501,0.036124,187.25,187.23,2.97]
[1755736048688,0.036124,187.25,187.22,2.53326585]
[1755736048894,3.02,187.24,187.22,5.50326585]
[1755736049498,3.02,187.24,187.22,10.84356585]
[1755736052099,8.3599,187.24,187.2,7.02013001]
[1755736052302,8.3599,187.24,187.2,9.99013001]
[1755736052506,8.3599,187.24,187.2,7.02013001]
[1755736052698,8.3599,187.24,187.21,2.97]
[1755736052896,2.56938985,187.25,187.2,4.48686416]
[1755736053102,3.02,187.22,187.17,201.93990731]
[1755736053403,3.02,187.22,187.19,8.3112]
[1755736053598,8.3604,187.22,187.19,2.97]
[1755736056005,8.3604,187.22,187.19,5.50326585]
[1755736056304,5.3407,187.21,187.19,2.53326585]
[1755736056495,5.3407,187.21,187.17,15.33193001]
[1755736056699,3.02,187.2,187.17,15.33193001]
[1755736057093,5.3408,187.21,187.18,2.97]
[1755736057294,0.04002528,187.2,187.18,2.97]
[1755736057704,3.02,187.19,187.17,7.02013001]
[1755736057902,3.02,187.19,187.17,2.53326585]
[1755736059097,3.02,187.19,187.17,7.87506585]
[1755736060809,0.04002528,187.2,187.17,2.53326585]
[1755736061108,0.04002528,187.2,187.18,2.97]
[1755736061801,0.04002528,187.2,187.19,10.84446585]
[1755736062004,0.04002528,187.2,187.19,17.86459586]
[1755736062202,0.04002528,187.2,187.19,13.3777317]
[1755736062606,0.04002528,187.2,187.19,17.87165522]
[1755736062912,0.04002528,187.2,187.19,13.3777317]
[1755736063307,3.02,187.26,187.25,5.3395]
[1755736064106,3.02,187.28,187.26,5.3391]
[1755736064404,3.02,187.28,187.26,2.53326585]
[1755736064906,3.02,187.28,187.26,7.87246585]
[1755736066416,3.02,187.27,187.26,2.53326585]
[1755736067412,3.02,187.27,187.26,7.87246585]
[1755736068217,3.02,187.27,187.26,2.53326585]
[1755736072719,3.02,187.27,187.25,0.03728269]
[1755736075016,8.3592,187.26,187.25,0.03728269]
[1755736075421,3.02,187.25,187.18,2.53326585]
[1755736075717,3.02,187.21,187.18,2.53326585]
[1755736076223,2.77,187.2,187.18,2.53326585]
[1755736077019,0.03868404,187.21,187.18,5.33326585]
[1755736077224,0.03868404,187.21,187.19,2.8]
[1755736077521,0.03868404,187.21,187.2,8.141]
[1755736079217,0.03868404,187.21,187.2,5.341]
[1755736080323,0.03868404,187.21,187.2,8.141]
[1755736080524,0.03868404,187.21,187.2,5.341]
[1755736080724,0.03868404,187.21,187.2,10.67426585]
[1755736086424,0.03868404,187.21,187.2,8.141]
[1755736088027,0.03868404,187.21,187.2,10.67426585]
[1755736088224,2.77,187.32,187.23,2.8]
[1755736088429,2.53326585,187.32,187.23,2.8]
[1755736088731,2.53326585,187.32,187.26,2.53326585]
[1755736088927,2.77,187.31,187.26,2.53326585]
[1755736089128,2.77,187.29,187.26,2.53326585]
[1755736089327,2.77,187.29,187.26,5.33326585]
[1755736089527,2.77,187.29,187.27,0.03644596]
[1755736092227,8.1084,187.29,187.27,0.03644596]
[1755736092935,2.77,187.29,187.27,0.03644596]
[1755736093130,5.3382,187.3,187.27,2.83644596]
[1755736093429,5.3378,187.32,187.28,2.53326585]
[1755736093727,2.77,187.34,187.3,2.53326585]
[1755736093933,2.77,187.36,187.27,0.03644596]
[1755736094123,2.77,187.33,187.31,2.53326585]
[1755736094328,131.26,187.36,187.31,2.53326585]
[1755736094528,2.77,187.35,187.33,2.53326585]
[1755736095630,2.77,187.35,187.33,7.87046585]
[1755736097237,131.24,187.37,187.33,10.67046585]
[1755736097438,134.01,187.37,187.34,2.8]
[1755736097939,2.77,187.37,187.34,8.1368]
[1755736098129,131.24,187.38,187.35,2.8]
[1755736098334,134.01,187.38,187.35,2.8]
[1755736098737,2.77,187.36,187.33,7.87046585]
[1755736099037,2.77,187.36,187.35,0.0345683]
[1755736100042,5.30326585,187.36,187.35,0.0345683]
[1755736101233,10.63966585,187.36,187.35,0.0345683]
[1755736103442,8.1064,187.36,187.35,0.0345683]
[1755736103635,10.63966585,187.36,187.35,0.0345683]
[1755736106242,3.0,187.31,187.28,2.81]
[1755736106642,3.0,187.31,187.23,4.49371345]
[1755736106847,5.53326585,187.31,187.25,2.53326585]
[1755736107035,3.0,187.31,187.27,2.53326585]
[1755736107238,3.0,187.31,187.28,2.81]
[1755736107441,0.03674434,187.3,187.28,2.81]
[1755736109145,3.03674434,187.3,187.27,5.3387]
[1755736109348,3.03674434,187.3,187.27,2.81]
[1755736109950,134.21674434,187.3,187.27,8.1489]
[1755736111041,3.0,187.29,187.2,7.0269793]
[1755736111238,3.0,187.28,187.24,5.34326585]
[1755736111844,134.18,187.28,187.24,5.34326585]
[1755736112244,131.18,187.28,187.26,5.34326585]
[1755736112448,131.18,187.28,187.27,2.81]
[1755736112851,131.18,187.28,187.26,10.68236585]
[1755736113057,131.18,187.28,187.26,8.1491]
[1755736114454,131.18,187.28,187.25,2.53326585]
[1755736114753,131.18,187.28,187.27,10.68226585]
[1755736116263,0.03372362,187.29,187.27,8.149]
[1755736116662,0.03372362,187.29,187.28,5.3387]
[1755736116862,0.03372362,187.29,187.28,8.1487]
[1755736119868,0.03372362,187.29,187.28,2.81]
[1755736120069,0.03372362,187.29,187.27,5.3389]
[1755736120269,3.0,187.28,187.26,2.53326585]
[1755736120767,3.0,187.28,187.24,5.34326585]
[1755736121363,8.37222362,187.29,187.2,2.53326585]
[1755736121569,5.37222362,187.29,187.24,5.34326585]
[1755736121770,3.0,187.27,187.24,5.34326585]
[1755736121968,3.0,187.26,187.24,5.34326585]
[1755736124567,3.0,187.26,187.22,5.3403]
[1755736124773,3.0,187.26,187.23,5.34326585]
[1755736125267,8.3392,187.26,187.23,5.34326585]
[1755736125672,8.37292561,187.26,187.23,5.34326585]
[1755736126775,3.03372561,187.26,187.23,5.34326585]
[1755736127575,3.0,187.25,187.23,2.53326585]
[1755736129275,3.0,187.25,187.23,5.34326585]
[1755736129671,0.03372561,187.26,187.23,5.34326585]
[1755736129879,0.03372561,187.26,187.25,5.34326585]
[1755736130077,0.03372561,187.26,187.25,10.68276585]
[1755736137784,0.03372561,187.26,187.25,13.2160317]
[1755736138079,2.84,187.33,187.3,2.76]
[1755736138380,2.84,187.32,187.29,10.63146585]
[1755736138877,2.84,187.35,187.31,5.29326585]
[1755736139283,131.12,187.36,187.31,5.29326585]
[1755736139484,2.84,187.34,187.32,5.3375]
[1755736139785,133.96,187.36,187.33,2.53326585]
[1755736139987,131.12,187.36,187.34,5.3369]
[1755736140183,489.33625292,187.39,187.35,2.53326585]
[1755736140486,2.84,187.38,187.35,10.62976585]
[1755736140684,2.84,187.38,187.35,10.66913912]
[1755736140984,127.61625292,187.39,187.35,10.66913912]
[1755736141183,2.84,187.37,187.35,10.66913912]
[1755736141881,2.84,187.37,187.35,7.90913912]
[1755736145591,2.84,187.37,187.35,2.57263912]
[1755736145794,2.84,187.36,187.35,0.03937327]
[1755736147691,2.84,187.37,187.35,0.03937327]
[1755736148188,131.06,187.38,187.35,0.03937327]
[1755736148394,2.84,187.36,187.35,0.03937327]
[1755736150297,8.1764,187.36,187.35,0.03937327]
[1755736153399,10.70966585,187.36,187.35,0.03937327]
[1755736154099,2.84,187.36,187.35,0.03937327]
[1755736155402,133.88,187.36,187.35,0.03937327]
[1755736155703,139.2164,187.36,187.35,0.03937327]
[1755736156805,2.84,187.36,187.35,0.03937327]
[1755736157000,133.88,187.36,187.35,0.03937327]
[1755736157405,139.2164,187.36,187.35,0.03937327]
[1755736157998,8.1764,187.36,187.35,0.03937327]
[1755736158203,139.2164,187.36,187.35,0.03937327]
[1755736160210,8.1764,187.36,187.35,0.03937327]
[1755736160409,139.2164,187.36,187.35,0.03937327]
[1755736169717,8.1764,187.36,187.35,0.03937327]
[1755736170016,139.1764,187.36,187.35,0.03937327]
[1755736177323,5.3364,187.36,187.35,2.90937327]
[1755736177521,136.3164,187.36,187.35,2.90937327]
[1755736177723,5.3364,187.36,187.35,2.90937327]
[1755736177922,5.3364,187.36,187.35,0.03937327]
[1755736178121,139.1464,187.36,187.35,0.03937327]
[1755736178322,2.83,187.36,187.35,0.03937327]
[1755736178520,2.53326585,187.39,187.36,2.87]
[1755736178722,130.98,187.38,187.37,2.87]
[1755736180120,5.3356,187.39,187.37,2.87]
[1755736180315,130.98,187.38,187.37,2.87]
[1755736181628,136.3158,187.38,187.37,2.87]
[1755736185128,136.2958,187.38,187.37,2.87]
[1755736186629,136.2958,187.38,187.35,2.90937327]
[1755736186828,136.2958,187.38,187.36,2.87]
[1755736187626,139.1258,187.38,187.36,2.87]
[1755736188329,140.75061875,187.38,187.36,2.87]
[1755736188623,5.3361,187.37,187.36,2.87]
[1755736188826,6.96091875,187.37,187.35,0.03937327]
[1755736189031,130.94,187.36,187.35,2.90937327]
[1755736189228,140.73121875,187.36,187.35,0.03937327]
[1755736192334,141.64622926,187.36,187.35,0.03937327]
[1755736194933,5.3374,187.33,187.28,5.40982926]
[1755736195137,130.92,187.32,187.28,2.53982926]
[1755736195336,130.92,187.32,187.31,2.87]
[1755736195931,2.83,187.36,187.31,2.87]
[1755736196239,0.03514255,187.33,187.29,2.89]
[1755736196436,130.92,187.32,187.31,2.89]
[1755736197235,130.92,187.32,187.31,8.2278]
[1755736199545,0.03514255,187.33,187.32,5.3375]
[1755736199744,130.95514255,187.33,187.32,10.76732926]
[1755736200239,0.03514255,187.33,187.32,10.76732926]
[1755736200443,117.71457251,187.42,187.33,2.89]
[1755736200638,130.92,187.4,187.39,2.89]
[1755736200843,130.92,187.4,187.39,5.42982926]
[1755736201033,130.92,187.4,187.39,10.76532926]
[1755736201241,130.92,187.4,187.39,2.89]
[1755736201437,130.92,187.4,187.38,2.89]
[1755736201643,133.92,187.4,187.38,2.92458304]
[1755736201844,3.0,187.39,187.38,0.03458304]
[1755736202149,133.92,187.4,187.38,0.03458304]
[1755736202449,133.92,187.4,187.38,2.92458304]
[1755736202649,130.92,187.4,187.38,2.92458304]
[1755736204146,8.3348,187.42,187.39,2.89]
[1755736204644,358.78,187.44,187.4,2.53982926]
[1755736204849,2.53982926,187.47,187.43,2.89]
[1755736205040,3.0,187.45,187.43,2.89]
[1755736205245,120.57849218,187.51,187.45,2.89]
[1755736205246,123.57849218,187.51,187.45,2.89]
[1755736205549,5.94972322,187.56,187.5,2.53982926]
[1755736205748,5.94972322,187.58,187.54,2.53982926]
[1755736205952,5.94972322,187.65,187.57,2.89]
[1755736206145,11.48955248,187.66,187.6,2.53982926]
[1755736206445,358.76,187.69,187.66,2.89]
[1755736206648,5.3276,187.67,187.63,2.89]
[1755736206845,3.0,187.67,187.63,2.89]
[1755736207041,3.0,187.65,187.61,0.03488655]
[1755736207245,358.76,187.69,187.64,2.53982926]
[1755736207442,133.86,187.68,187.64,2.89]
[1755736207952,5.3281,187.65,187.64,5.42982926]
[1755736208154,133.86,187.68,187.64,5.42982926]
[1755736208448,133.86,187.68,187.61,0.03488655]
[1755736208449,3.0,187.65,187.62,2.53982926]
[1755736208647,130.86,187.64,187.61,0.03488655]
[1755736208848,5.329,187.62,187.61,0.03488655]
[1755736209653,0.03953289,187.65,187.62,2.89]
[1755736209856,130.83953289,187.65,187.64,2.89]
[1755736211050,136.16763289,187.65,187.64,2.89]
[1755736211256,3.0,187.64,187.61,2.57471581]
[1755736211458,3.0,187.63,187.61,0.03488655]
[1755736211854,5.329,187.62,187.61,0.03488655]
[1755736212557,5.329,187.62,187.61,2.57471581]
[1755736212959,5.329,187.62,187.61,0.03488655]
[1755736217560,8.329,187.62,187.61,0.03488655]
[1755736218347,5.329,187.62,187.61,0.03488655]
[1755736220453,3.03953289,187.65,187.61,2.57471581]
[1755736220760,130.72,187.64,187.62,2.89]
[1755736221059,130.72,187.64,187.61,5.46471581]
[1755736221560,136.0487,187.64,187.61,5.46471581]
[1755736221859,133.72,187.64,187.61,2.57471581]
[1755736222056,5.329,187.63,187.61,2.57471581]
[1755736222458,133.72,187.64,187.61,5.46471581]
[1755736222658,139.0487,187.64,187.61,5.46471581]
[1755736223453,5.3289,187.63,187.61,2.92488655]
[1755736223961,133.72,187.64,187.61,2.92488655]
[1755736224156,130.72,187.64,187.61,2.92488655]
[1755736224657,136.0486,187.64,187.61,2.92488655]
[1755736224955,133.72,187.64,187.61,2.92488655]
[1755736225663,8.329,187.63,187.61,0.03488655]
[1755736226254,2.57936215,187.65,187.61,0.03488655]
[1755736226557,130.7,187.64,187.62,5.33982926]
[1755736227453,2.85,187.63,187.61,0.03488655]
[1755736227654,2.85,187.62,187.61,0.03488655]
[1755736228154,8.179,187.62,187.61,0.03488655]
[1755736229155,5.329,187.62,187.61,0.03488655]
[1755736229556,5.3288,187.63,187.61,0.03488655]
[1755736229760,130.7,187.62,187.61,2.83488655]
[1755736231658,0.03953289,187.65,187.61,2.83488655]
[1755736231862,130.7,187.64,187.62,5.33982926]
[1755736232365,136.0285,187.64,187.62,5.33982926]
[1755736232564,130.7,187.64,187.63,2.8]
[1755736232760,0.03953289,187.65,187.64,2.8]
[1755736233065,0.03953289,187.65,187.64,5.33982926]
[1755736235661,0.03953289,187.65,187.64,10.66822926]
[1755736236159,130.68,187.69,187.64,5.07965852]
[1755736236463,2.85,187.74,187.71,2.8]
[1755736236662,130.68,187.74,187.72,2.53982926]
[1755736236857,5.3251,187.76,187.72,5.33982926]
[1755736237058,130.66,187.75,187.74,2.53982926]
[1755736238067,130.66,187.75,187.74,5.33982926]
[1755736238263,5.3245,187.78,187.74,5.33982926]
[1755736238465,130.66,187.78,187.73,2.8]
[1755736238666,5.38982926,187.83,187.76,2.53982926]
[1755736238965,130.66,187.82,187.8,2.53982926]
[1755736239166,2.85,187.81,187.78,2.53982926]
[1755736239363,133.19982926,187.85,187.78,2.53982926]
[1755736239364,2.85,187.79,187.78,2.53982926]
[1755736239560,130.72,187.8,187.73,2.8]
[1755736239864,2.85,187.79,187.78,0.03714901]
[1755736240062,8.1741,187.79,187.78,0.03714901]
[1755736240264,136.1441,187.79,187.78,0.03714901]
[1755736241074,138.9941,187.79,187.78,0.03714901]
[1755736241273,5.3241,187.79,187.78,0.03714901]
[1755736241469,130.85983155,187.8,187.78,0.03714901]